fUST/lending_fUST_20240624
["ID","MTS","AMOUNT","RATE_DAILY","PERIOD"]
[330215482,1719173440547,-500.0,0.00016438,2]
[330215483,1719173440560,-500.0,0.00016438,2]
[330215484,1719173440572,-500.0,0.00016438,2]
[330215485,1719173440584,-582.98,0.00016438,2]
[330215486,1719173440595,-631.95,0.00016438,2]
[330215487,1719173440608,-500.0,0.00016438,2]
[330215488,1719173440619,-519.71546097,0.00016438,2]
[330215490,1719173440632,-512.93,0.00016438,2]
[330215491,1719173440644,-1240.14,0.00016438,2]
[330215492,1719173440656,-500.0,0.00016438,2]
[330215493,1719173440667,-500.0,0.00016438,2]
[330215494,1719173440680,-587.49,0.00016438,2]
[330215495,1719173440691,-1015.85,0.00016438,2]
[330215496,1719173440704,-500.0,0.00016438,2]
[330215497,1719173440715,-500.0,0.00016438,2]
[330215498,1719173440727,-500.0,0.00016438,2]
[330215499,1719173440739,-1504.69,0.00016438,2]
[330215500,1719173440751,-500.0,0.00016438,2]
[330215501,1719173440763,-1023.19,0.00016438,2]
[330215502,1719173440775,-500.0,0.00016438,2]
[330215503,1719173440787,-774.7,0.00016438,2]
[330215504,1719173440799,-500.0,0.00016438,2]
[330215505,1719173440812,-500.0,0.00016438,2]
[330215506,1719173440823,-500.0,0.00016438,2]
[330215507,1719173440835,-882.35,0.00016438,2]
[330215508,1719173440847,-500.0,0.00016438,2]
[330215509,1719173440859,-500.0,0.00016438,2]
[330215510,1719173440871,-500.0,0.00016438,2]
[330215511,1719173440882,-500.0,0.00016438,2]
[330215512,1719173440894,-500.0,0.00016438,2]
[330215513,1719173440906,-754.34,0.00016438,2]
[330215514,1719173440917,-500.0,0.00016438,2]
[330215515,1719173440929,-500.0,0.00016438,2]
[330215516,1719173440941,-5849.72,0.00016438,2]
[330215517,1719173440952,-1382.14,0.00016438,2]
[330215518,1719173440964,-500.0,0.00016438,2]
[330215519,1719173440976,-33865.12,0.00016438,2]
[330215520,1719173440994,-500.0,0.00016438,2]
[330215521,1719173441006,-1407.62,0.00016438,2]
[330215522,1719173441017,-703.66,0.00016438,2]
[330215523,1719173441029,-1243.03,0.00016438,2]
[330215524,1719173441042,-1598.28,0.00016438,2]
[330215525,1719173441053,-500.0,0.00016438,2]
[330215526,1719173441066,-500.0,0.00016438,2]
[330215527,1719173441078,-500.0,0.00016438,2]
[330215528,1719173441089,-490.01253011,0.00016438,2]
[330215530,1719173441100,-500.0,0.00016438,2]
[330215532,1719173441112,-500.0,0.00016438,2]
[330215533,1719173441124,-1148.11,0.00016438,2]
[330215534,1719173441135,-500.0,0.00016438,2]
[330215545,1719173441325,-554.62,0.00016438,2]
[330215546,1719173441336,-3312.32,0.00016438,2]
[330215547,1719173441345,-500.0,0.00016438,2]
[330215548,1719173441355,-500.0,0.00016438,2]
[330215549,1719173441365,-579.69,0.00016438,2]
[330215550,1719173441374,-500.0,0.00016438,2]
[330215551,1719173441384,-2416.6,0.00016438,2]
[330215552,1719173441393,-448.91955808,0.00016438,2]
[330215553,1719173441402,-1379.03,0.00016438,2]
[330215554,1719173441411,-500.0,0.00016438,2]
[330215555,1719173441421,-6598.15,0.00016438,2]
[330215556,1719173441431,-574.07,0.00016438,2]
[330215557,1719173441440,-508.7203825,0.00016438,2]
[330215558,1719173441450,-500.0,0.00016438,2]
[330215559,1719173441460,-928.76,0.00016438,2]
[330215560,1719173441469,-473.87871896,0.00016438,2]
[330215561,1719173441480,-670.03,0.00016438,2]
[330215562,1719173441488,-500.0,0.00016438,2]
[330215563,1719173441497,-500.0,0.00016438,2]
[330215564,1719173441506,-500.0,0.00016438,2]
[330215565,1719173441516,-1013.15,0.00016438,2]
[330215566,1719173441526,-500.0,0.00016438,2]
[330215567,1719173441535,-703.57,0.00016438,2]
[330215568,1719173441544,-1251.78,0.00016438,2]
[330215569,1719173441555,-500.0,0.00016438,2]
[330215570,1719173441565,-774.98,0.00016438,2]
[330215571,1719173441576,-500.0,0.00016438,2]
[330215572,1719173441585,-500.0,0.00016438,2]
[330215573,1719173441595,-1069.9,0.00016438,2]
[330215574,1719173441604,-500.0,0.00016438,2]
[330215575,1719173441613,-7079.41,0.00016438,2]
[330215576,1719173441623,-500.0,0.00016438,2]
[330215577,1719173441634,-1166.1,0.00016438,2]
[330215578,1719173441644,-696.49,0.00016438,2]
[330215579,1719173441655,-999.44,0.00016438,2]
[330215580,1719173441666,-500.0,0.00016438,2]
[330215581,1719173441677,-4216.41,0.00016438,2]
[330215582,1719173441687,-1954.71,0.00016438,2]
[330215583,1719173441697,-500.0,0.00016438,2]
[330215584,1719173441707,-639.25,0.00016438,2]
[330215585,1719173441716,-500.0,0.00016438,2]
[330215586,1719173441728,-500.0,0.00016438,2]
[330215587,1719173441737,-500.0,0.00016438,2]
[330215588,1719173441747,-500.0,0.00016438,2]
[330215589,1719173441756,-525.37,0.00016438,2]
[330215590,1719173441767,-500.0,0.00016438,2]
[330215591,1719173441778,-500.0,0.00016438,2]
[330215592,1719173441788,-2995.11,0.00016438,2]
[330215593,1719173441797,-500.0,0.00016438,2]
[330215594,1719173441807,-643.2,0.00016438,2]
[330215595,1719173441817,-520.38567189,0.00016438,2]
[330215596,1719173441827,-350.25959646,0.00016438,2]
[330215597,1719173441837,-4522.94,0.00016438,2]
[330215598,1719173441847,-1292.33,0.00016438,2]
[330215599,1719173441858,-500.0,0.00016438,2]
[330215600,1719173441869,-519.99534314,0.00016438,2]
[330215601,1719173441879,-565.77,0.00016438,2]
[330215602,1719173441888,-500.0,0.00016438,2]
[330215603,1719173441898,-21424.78,0.00016438,2]
[330215604,1719173441908,-500.0,0.00016438,2]
[330215605,1719173441917,-1898.74,0.00016438,2]
[330215606,1719173441927,-536.38,0.00016438,2]
[330215607,1719173441936,-6551.28,0.00016438,2]
[330215608,1719173441945,-575.16,0.00016438,2]
[330215609,1719173441955,-714.36,0.00016438,2]
[330215610,1719173441964,-500.0,0.00016438,2]
[330215611,1719173441973,-1537.45,0.00016438,2]
[330215612,1719173441984,-500.0,0.00016438,2]
[330215613,1719173441997,-1341.15,0.00016438,2]
[330215614,1719173442006,-500.0,0.00016438,2]
[330215615,1719173442016,-1166.25,0.00016438,2]
[330215616,1719173442027,-1079.26,0.00016438,2]
[330215617,1719173442037,-6517.34,0.00016438,2]
[330215618,1719173442047,-2561.56,0.00016438,2]
[330215619,1719173442056,-3610.86,0.00016438,2]
[330215620,1719173442067,-2246.33,0.00016438,2]
[330215621,1719173442078,-1537.66,0.00016438,2]
[330215622,1719173442087,-500.0,0.00016438,2]
[330215623,1719173442097,-1432.41,0.00016438,2]
[330215624,1719173442106,-437.34671598,0.00016438,2]
[330215625,1719173442115,-774.05,0.00016438,2]
[330215626,1719173442124,-7412.42,0.00016438,2]
[330215627,1719173442133,-500.0,0.00016438,2]
[330215628,1719173442143,-500.0,0.00016438,2]
[330215629,1719173442152,-500.0,0.00016438,2]
[330215630,1719173442161,-500.0,0.00016438,2]
[330215631,1719173442170,-756.33,0.00016438,2]
[330215632,1719173442179,-500.0,0.00016438,2]
[330215633,1719173442188,-1376.71,0.00016438,2]
[330215634,1719173442197,-20933.12538937,0.00016438,2]
[330215635,1719173442424,-201.51461063,0.00016438,2]
[330215636,1719173442433,-154.85288975,0.00016452,2]
[330215637,1719173442442,-156.80969809,0.00016486,2]
[330215638,1719173442451,-172.29989744,0.00016486,2]
[330215639,1719173442460,-1369.59003324,0.0001649,2]
[330215640,1719173442650,-3907.97388789,0.0001649,2]
[330215641,1719173442659,-229.29227807,0.000165,2]
[330215642,1719173442668,-11117.37808337,0.000165,2]
[330215643,1719173442678,-18427.30820839,0.0001657,2]
[330215644,1719173442687,-373.67425734,0.0001657,2]
[330215645,1719173442696,-6971.98727304,0.00016607,2]
[330215646,1719173442705,-876.0,0.00016634,2]
[330215647,1719173442714,-394.1,0.00016653,2]
[330215648,1719173442723,-524.35716251,0.00016711,2]
[330215649,1719173442737,-500.0,0.00016712,2]
[330215650,1719173442746,-154.372248,0.00016712,2]
[330215651,1719173442755,-665.2,0.00016712,2]
[330215652,1719173442763,-500.0,0.00016712,2]
[330215653,1719173442772,-459.59780693,0.00016712,2]
[330215654,1719173442781,-500.0,0.00016712,2]
[330215655,1719173442789,-570.03,0.00016712,2]
[330215656,1719173442798,-500.0,0.00016712,2]
[330215657,1719173442808,-500.0,0.00016712,2]
[330215658,1719173442816,-500.0,0.00016712,2]
[330215659,1719173442827,-500.0,0.00016712,2]
[330215660,1719173442837,-500.0,0.00016712,2]
[330215662,1719173442847,-548.05,0.00016712,2]
[330215663,1719173442856,-151.0,0.00016712,2]
[330215664,1719173442865,-151.0,0.00016712,2]
[330215665,1719173442875,-151.0,0.00016712,2]
[330215666,1719173442884,-500.0,0.00016712,2]
[330215667,1719173442893,-671.82,0.00016712,2]
[330215669,1719173442902,-500.0,0.00016712,2]
[330215671,1719173442911,-500.0,0.00016712,2]
[330215673,1719173442921,-500.0,0.00016712,2]
[330215674,1719173442930,-500.0,0.00016712,2]
[330215676,1719173442939,-565.76,0.00016712,2]
[330215678,1719173442949,-500.0,0.00016712,2]
[330215679,1719173442958,-500.0,0.00016712,2]
[330215680,1719173442967,-1305.87,0.00016712,2]
[330215681,1719173442976,-500.0,0.00016712,2]
[330215682,1719173442994,-500.0,0.00016712,2]
[330215683,1719173443003,-500.0,0.00016712,2]
[330215684,1719173443012,-500.0,0.00016712,2]
[330215685,1719173443021,-500.0,0.00016712,2]
[330215686,1719173443031,-877.3,0.00016712,2]
[330215687,1719173443041,-500.0,0.00016712,2]
[330215688,1719173443051,-500.0,0.00016712,2]
[330215689,1719173443060,-521.07,0.00016712,2]
[330215690,1719173443071,-151.0,0.00016712,2]
[330215691,1719173443082,-151.0,0.00016712,2]
[330215692,1719173443091,-174.098507,0.00016712,2]
[330215693,1719173443100,-174.098507,0.00016712,2]
[330215694,1719173443110,-174.098507,0.00016712,2]
[330215695,1719173443120,-174.098507,0.00016712,2]
[330215696,1719173443129,-500.0,0.00016712,2]
[330215697,1719173443139,-500.0,0.00016712,2]
[330215698,1719173443148,-151.0,0.00016712,2]
[330215699,1719173443158,-500.0,0.00016712,2]
[330215700,1719173443168,-250.0,0.00016712,2]
[330215701,1719173443177,-500.0,0.00016712,2]
[330215702,1719173443186,-151.0,0.00016712,2]
[330215704,1719173443195,-151.0,0.00016712,2]
[330215706,1719173443206,-500.0,0.00016712,2]
[330215707,1719173443215,-500.0,0.00016712,2]
[330215708,1719173443224,-154.45674,0.00016712,2]
[330215709,1719173443235,-500.0,0.00016712,2]
[330215710,1719173443244,-517.24005402,0.00016712,2]
[330215712,1719173443253,-500.0,0.00016712,2]
[330215714,1719173443262,-285.617901,0.00016712,2]
[330215715,1719173443273,-500.0,0.00016712,2]
[330215716,1719173443284,-500.0,0.00016712,2]
[330215717,1719173443293,-509.88,0.00016712,2]
[330215718,1719173443304,-500.0,0.00016712,2]
[330215719,1719173443316,-500.0,0.00016712,2]
[330215720,1719173443325,-500.0,0.00016712,2]
[330215721,1719173443334,-500.0,0.00016712,2]
[330215722,1719173443344,-1016.86,0.00016712,2]
[330215723,1719173443353,-500.0,0.00016712,2]
[330215725,1719173443363,-397.56589924,0.00016712,2]
[330215726,1719173443372,-519.66091484,0.00016712,2]
[330215727,1719173443381,-500.0,0.00016712,2]
[330215728,1719173443391,-500.0,0.00016712,2]
[330215729,1719173443401,-500.0,0.00016712,2]
[330215730,1719173443412,-1653.95,0.00016712,2]
[330215731,1719173443422,-500.0,0.00016712,2]
[330215732,1719173443432,-500.0,0.00016712,2]
[330215733,1719173443443,-531.28,0.00016712,2]
[330215734,1719173443454,-500.0,0.00016712,2]
[330215735,1719173443463,-500.0,0.00016712,2]
[330215736,1719173443474,-500.0,0.00016712,2]
[330215737,1719173443484,-708.33,0.00016712,2]
[330215738,1719173443495,-500.0,0.00016712,2]
[330215739,1719173443504,-500.0,0.00016712,2]
[330215740,1719173443514,-500.0,0.00016712,2]
[330215741,1719173443523,-500.0,0.00016712,2]
[330215742,1719173443534,-1150.96,0.00016712,2]
[330215743,1719173443544,-500.0,0.00016712,2]
[330215744,1719173443555,-500.0,0.00016712,2]
[330215745,1719173443565,-1539.92,0.00016712,2]
[330215746,1719173443575,-500.0,0.00016712,2]
[330215747,1719173443585,-151.0,0.00016712,2]
[330215748,1719173443594,-500.0,0.00016712,2]
[330215749,1719173443603,-4243.1,0.00016712,2]
[330215750,1719173443612,-1440.03,0.00016712,2]
[330215751,1719173443622,-153.39775,0.00016712,2]
[330215752,1719173443631,-153.39775,0.00016712,2]
[330215753,1719173443641,-500.0,0.00016712,2]
[330215754,1719173443650,-1839.55,0.00016712,2]
[330215755,1719173443659,-153.39775,0.00016712,2]
[330215756,1719173443668,-153.39775,0.00016712,2]
[330215757,1719173443677,-500.0,0.00016712,2]
[330215758,1719173443686,-500.0,0.00016712,2]
[330215759,1719173443695,-500.0,0.00016712,2]
[330215760,1719173443704,-500.0,0.00016712,2]
[330215761,1719173443714,-500.0,0.00016712,2]
[330215762,1719173443724,-500.0,0.00016712,2]
[330215763,1719173443734,-507.1,0.00016712,2]
[330215764,1719173443744,-500.0,0.00016712,2]
[330215765,1719173443753,-629.52,0.00016712,2]
[330215766,1719173443762,-500.0,0.00016712,2]
[330215767,1719173443771,-151.0,0.00016712,2]
[330215768,1719173443780,-151.0,0.00016712,2]
[330215769,1719173443789,-500.0,0.00016712,2]
[330215770,1719173443799,-500.0,0.00016712,2]
[330215771,1719173443808,-500.0,0.00016712,2]
[330215772,1719173443818,-500.0,0.00016712,2]
[330215773,1719173443827,-500.0,0.00016712,2]
[330215774,1719173443836,-1222.12,0.00016712,2]
[330215775,1719173443845,-500.0,0.00016712,2]
[330215776,1719173443854,-662.32,0.00016712,2]
[330215777,1719173443864,-500.0,0.00016712,2]
[330215778,1719173443872,-986.6,0.00016712,2]
[330215779,1719173444015,-633.56,0.00016712,2]
[330215780,1719173444027,-500.0,0.00016712,2]
[330215781,1719173444036,-151.0,0.00016712,2]
[330215782,1719173444045,-151.0,0.00016712,2]
[330215783,1719173444055,-897.91,0.00016712,2]
[330215784,1719173444064,-500.0,0.00016712,2]
[330215785,1719173444077,-1871.31,0.00016712,2]
[330215786,1719173444088,-524.21,0.00016712,2]
[330215787,1719173444098,-500.0,0.00016712,2]
[330215788,1719173444108,-500.0,0.00016712,2]
[330215789,1719173444118,-500.0,0.00016712,2]
[330215790,1719173444127,-484.36244748,0.00016712,2]
[330215791,1719173444137,-2195.58,0.00016712,2]
[330215792,1719173444146,-500.0,0.00016712,2]
[330215793,1719173444156,-500.0,0.00016712,2]
[330215794,1719173444166,-426.49890829,0.00016712,2]
[330215795,1719173444175,-500.0,0.00016712,2]
[330215796,1719173444184,-500.0,0.00016712,2]
[330215797,1719173444194,-500.0,0.00016712,2]
[330215798,1719173444203,-500.0,0.00016712,2]
[330215799,1719173444213,-500.0,0.00016712,2]
[330215800,1719173444222,-500.0,0.00016712,2]
[330215801,1719173444232,-500.0,0.00016712,2]
[330215802,1719173444241,-779.76,0.00016712,2]
[330215803,1719173444250,-500.0,0.00016712,2]
[330215804,1719173444259,-500.0,0.00016712,2]
[330215805,1719173444268,-500.0,0.00016712,2]
[330215806,1719173444277,-582.98,0.00016712,2]
[330215807,1719173444287,-631.95,0.00016712,2]
[330215808,1719173444296,-151.0,0.00016712,2]
[330215809,1719173444305,-151.0,0.00016712,2]
[330215810,1719173444315,-151.0,0.00016712,2]
[330215811,1719173444324,-597.10015087,0.00016712,2]
[330215812,1719173444334,-151.0,0.00016712,2]
[330215813,1719173444344,-151.0,0.00016712,2]
[330215814,1719173444355,-151.0,0.00016712,2]
[330215815,1719173444365,-512.93,0.00016712,2]
[330215816,1719173444374,-1240.14,0.00016712,2]
[330215817,1719173444383,-500.0,0.00016712,2]
[330215818,1719173444393,-576.86093411,0.00016712,2]
[330215819,1719173444404,-587.49,0.00016712,2]
[330215820,1719173444416,-1015.85,0.00016712,2]
[330215821,1719173444426,-151.0,0.00016712,2]
[330215822,1719173444436,-500.0,0.00016712,2]
[330215823,1719173444445,-500.0,0.00016712,2]
[330215824,1719173444455,-500.0,0.00016712,2]
[330215825,1719173444464,-1504.69,0.00016712,2]
[330215826,1719173444474,-151.0,0.00016712,2]
[330215827,1719173444483,-151.0,0.00016712,2]
[330215828,1719173444492,-155.231127,0.00016712,2]
[330215829,1719173444501,-500.0,0.00016712,2]
[330215830,1719173444511,-1023.19,0.00016712,2]
[330215831,1719173444520,-500.0,0.00016712,2]
[330215832,1719173444530,-774.7,0.00016712,2]
[330215833,1719173444540,-151.0,0.00016712,2]
[330215834,1719173444550,-500.0,0.00016712,2]
[330215835,1719173444559,-500.0,0.00016712,2]
[330215836,1719173444569,-882.35,0.00016712,2]
[330215837,1719173444578,-500.0,0.00016712,2]
[330215838,1719173444587,-500.0,0.00016712,2]
[330215839,1719173444596,-500.39665714,0.00016712,2]
[330215840,1719173444605,-500.0,0.00016712,2]
[330215841,1719173444614,-416.84264432,0.00016712,2]
[330215842,1719173444624,-754.34,0.00016712,2]
[330215843,1719173444634,-500.0,0.00016712,2]
[330215844,1719173444646,-151.0,0.00016712,2]
[330215845,1719173444655,-151.0,0.00016712,2]
[330215846,1719173444666,-5849.72,0.00016712,2]
[330215847,1719173444676,-500.0,0.00016712,2]
[330215848,1719173444685,-1382.14,0.00016712,2]
[330215849,1719173444694,-153.544754,0.00016712,2]
[330215850,1719173444704,-153.544754,0.00016712,2]
[330215851,1719173444712,-153.544754,0.00016712,2]
[330215852,1719173444722,-500.0,0.00016712,2]
[330215853,1719173444731,-33865.12,0.00016712,2]
[330215854,1719173444741,-500.0,0.00016712,2]
[330215855,1719173444750,-153.544754,0.00016712,2]
[330215856,1719173444759,-153.544754,0.00016712,2]
[330215857,1719173444769,-153.544754,0.00016712,2]
[330215858,1719173444779,-1407.62,0.00016712,2]
[330215859,1719173444789,-703.66,0.00016712,2]
[330215860,1719173444799,-1243.03,0.00016712,2]
[330215861,1719173444811,-1598.28,0.00016712,2]
[330215862,1719173444820,-164.967774,0.00016712,2]
[330215863,1719173444831,-492.92289054,0.00016712,2]
[330215864,1719173444873,-175.97073239,0.00015934,2]
[330215865,1719173444882,-7.07710946,0.00016712,2]
[330215866,1719173444891,-500.0,0.00016712,2]
[330215867,1719173444901,-500.0,0.00016712,2]
[330215868,1719173444910,-515.6730036,0.00016712,2]
[330215869,1719173444920,-1148.11,0.00016712,2]
[330215870,1719173444929,-500.0,0.00016712,2]
[330215871,1719173444937,-554.62,0.00016712,2]
[330215872,1719173444947,-3312.32,0.00016712,2]
[330215873,1719173444956,-500.0,0.00016712,2]
[330215874,1719173444965,-500.0,0.00016712,2]
[330215875,1719173444974,-579.69,0.00016712,2]
[330215876,1719173444983,-500.0,0.00016712,2]
[330215877,1719173444997,-2416.6,0.00016712,2]
[330215878,1719173445007,-1379.03,0.00016712,2]
[330215879,1719173445016,-500.0,0.00016712,2]
[330215880,1719173445025,-6598.15,0.00016712,2]
[330215881,1719173445036,-574.07,0.00016712,2]
[330215882,1719173445045,-928.76,0.00016712,2]
[330215883,1719173445054,-670.03,0.00016712,2]
[330215884,1719173445063,-500.0,0.00016712,2]
[330215885,1719173445074,-500.0,0.00016712,2]
[330215886,1719173445084,-500.0,0.00016712,2]
[330215887,1719173445093,-1013.15,0.00016712,2]
[330215888,1719173445103,-703.57,0.00016712,2]
[330215889,1719173445112,-1251.78,0.00016712,2]
[330215890,1719173445121,-500.0,0.00016712,2]
[330215891,1719173445130,-774.98,0.00016712,2]
[330215892,1719173445139,-500.0,0.00016712,2]
[330215893,1719173445148,-500.0,0.00016712,2]
[330215894,1719173445157,-1069.9,0.00016712,2]
[330215895,1719173445166,-500.0,0.00016712,2]
[330215896,1719173445175,-1049.57971112,0.00016712,2]
[330215897,1719173445513,-6029.83028888,0.00016712,2]
[330215898,1719173445526,-151.0,0.00016712,2]
[330215899,1719173445538,-151.0,0.00016712,2]
[330215900,1719173445547,-151.0,0.00016712,2]
[330215901,1719173445556,-500.0,0.00016712,2]
[330215902,1719173445567,-1166.1,0.00016712,2]
[330215903,1719173445578,-696.49,0.00016712,2]
[330215904,1719173445588,-999.44,0.00016712,2]
[330215905,1719173445599,-500.0,0.00016712,2]
[330215906,1719173445608,-1954.71,0.00016712,2]
[330215907,1719173445618,-4216.41,0.00016712,2]
[330215908,1719173445628,-500.0,0.00016712,2]
[330215909,1719173445638,-639.25,0.00016712,2]
[330215910,1719173445647,-500.0,0.00016712,2]
[330215911,1719173445656,-500.0,0.00016712,2]
[330215912,1719173445666,-500.0,0.00016712,2]
[330215913,1719173445676,-525.37,0.00016712,2]
[330215914,1719173445686,-500.0,0.00016712,2]
[330215915,1719173445696,-500.0,0.00016712,2]
[330215916,1719173445707,-2995.11,0.00016712,2]
[330215917,1719173445716,-500.0,0.00016712,2]
[330215918,1719173445727,-643.2,0.00016712,2]
[330215919,1719173445739,-4522.94,0.00016712,2]
[330215920,1719173445748,-1292.33,0.00016712,2]
[330215921,1719173445757,-151.0,0.00016712,2]
[330215922,1719173445766,-219.980532,0.00016712,2]
[330215923,1719173445775,-500.0,0.00016712,2]
[330215925,1719173445783,-565.77,0.00016712,2]
[330215927,1719173445793,-500.0,0.00016712,2]
[330215928,1719173445802,-9101.47948648,0.00016712,2]
[330215962,1719173616804,3000.0,0.000225,30]
[330215963,1719173617195,3000.0,0.0002251,30]
[330215964,1719173617504,2299.09979364,0.0002252,30]
[330215991,1719174206996,3000.0,0.000225,30]
[330216037,1719174632772,-450.743675,0.0001434,2]
[330216040,1719174632783,-6.768325,0.00014587,2]
[330216042,1719174632799,-309.17339764,0.00014587,2]
[330216045,1719174632812,-300.0,0.00014628,2]
[330216047,1719174632825,-300.0,0.00014628,2]
[330216049,1719174632836,-333.87439716,0.00014629,2]
[330216052,1719174632851,-22933.1811087,0.00014629,2]
[330216118,1719174638690,-1632.94449414,0.00014629,2]
[330216119,1719174638699,-296.628297,0.00014698,2]
[330216120,1719174638712,-236.22925636,0.000152,2]
[330216121,1719174638721,-236.22925634,0.000152,2]
[330216122,1719174638730,-236.22925634,0.000152,2]
[330216123,1719174638740,-154.85288975,0.00015214,2]
[330216124,1719174638749,-858.03005596,0.00015302,2]
[330216125,1719174638760,-13105.81778894,0.00015302,2]
[330216126,1719174638772,-28211.55968533,0.00015302,2]
[330216127,1719174638783,-1245.33464825,0.00015362,2]
[330216128,1719174638792,-315.9417226,0.00015463,2]
[330216129,1719174638802,-373.67425734,0.00015883,2]
[330216130,1719174638813,-315.9417226,0.000159,2]
[330216131,1719174638823,-528.19460219,0.00016001,2]
[330216132,1719174638833,-420.0,0.00016015,2]
[330216133,1719174638843,-3923.20622618,0.00016089,2]
[330216134,1719174638853,-420.0,0.0001609,2]
[330216135,1719174638862,-315.9417226,0.00016338,2]
[330216136,1719174638872,-5235.00615511,0.00016338,2]
[330216137,1719174638882,-159.70589002,0.00016401,2]
[330216138,1719174638892,-155.73161099,0.00016404,2]
[330216139,1719174638902,-500.0,0.00016438,2]
[330216140,1719174638912,-500.0,0.00016438,2]
[330216141,1719174638925,-500.0,0.00016438,2]
[330216142,1719174638934,-500.0,0.00016438,2]
[330216143,1719174638944,-510.0,0.00016438,2]
[330216144,1719174638953,-500.0,0.00016438,2]
[330216145,1719174638962,-500.0,0.00016438,2]
[330216146,1719174638972,-500.0,0.00016438,2]
[330216147,1719174638981,-500.0,0.00016438,2]
[330216148,1719174638991,-500.0,0.00016438,2]
[330216149,1719174639001,-500.0,0.00016438,2]
[330216150,1719174639011,-500.0,0.00016438,2]
[330216151,1719174639022,-649.31,0.00016438,2]
[330216152,1719174639033,-500.0,0.00016438,2]
[330216153,1719174639043,-500.0,0.00016438,2]
[330216154,1719174639054,-500.0,0.00016438,2]
[330216155,1719174639065,-500.0,0.00016438,2]
[330216156,1719174639075,-500.0,0.00016438,2]
[330216157,1719174639086,-500.0,0.00016438,2]
[330216158,1719174639096,-500.0,0.00016438,2]
[330216159,1719174639107,-517.88585259,0.00016438,2]
[330216160,1719174639117,-577.06,0.00016438,2]
[330216161,1719174639128,-500.0,0.00016438,2]
[330216162,1719174639138,-500.0,0.00016438,2]
[330216163,1719174639149,-500.0,0.00016438,2]
[330216164,1719174639160,-297.23291265,0.00016438,2]
[330216165,1719174639172,-500.0,0.00016438,2]
[330216166,1719174639183,-529.0318926,0.00016438,2]
[330216167,1719174639193,-500.0,0.00016438,2]
[330216168,1719174639204,-500.0,0.00016438,2]
[330216169,1719174639215,-1503.14,0.00016438,2]
[330216170,1719174639226,-301.39453752,0.00016438,2]
[330216171,1719174639236,-500.0,0.00016438,2]
[330216172,1719174639247,-607.12,0.00016438,2]
[330216173,1719174639258,-904.38,0.00016438,2]
[330216174,1719174639268,-183.63615568,0.00016438,2]
[330216175,1719174639278,-500.0,0.00016438,2]
[330216176,1719174639288,-500.0,0.00016438,2]
[330216177,1719174639298,-500.0,0.00016438,2]
[330216178,1719174639308,-500.0,0.00016438,2]
[330216179,1719174639318,-500.0,0.00016438,2]
[330216180,1719174639328,-500.0,0.00016438,2]
[330216181,1719174639338,-558.69,0.00016438,2]
[330216182,1719174639348,-500.0,0.00016438,2]
[330216183,1719174639357,-519.71546097,0.00016438,2]
[330216184,1719174639368,-500.0,0.00016438,2]
[330216185,1719174639378,-980.55,0.00016438,2]